fUSD/lending_fUSD_20241219
["ID","MTS","AMOUNT","RATE_DAILY","PERIOD"]
[345981356,1734595839392,-500.0,0.00022065,4]
[345981357,1734595839403,-500.0,0.00022065,4]
[345981358,1734595839412,-500.0,0.00022065,4]
[345981359,1734595839422,-517.76290629,0.00022065,4]
[345981360,1734595839431,-500.0,0.00022065,4]
[345981361,1734595839441,-500.0,0.00022065,4]
[345981362,1734595839450,-500.0,0.00022065,4]
[345981363,1734595839460,-500.0,0.00022065,4]
[345981364,1734595839470,-500.0,0.00022065,2]
[345981365,1734595839480,-503.65591262,0.00022065,4]
[345981366,1734595839490,-188.25,0.00022065,4]
[345981367,1734595839500,-500.0,0.00022065,4]
[345981368,1734595839513,-500.0,0.00022065,4]
[345981369,1734595839522,-500.0,0.00022065,4]
[345981370,1734595839532,-500.0,0.00022065,4]
[345981371,1734595839541,-500.0,0.00022065,4]
[345981372,1734595839551,-500.0,0.00022065,4]
[345981373,1734595839560,-500.0,0.00022065,4]
[345981374,1734595839569,-500.0,0.00022065,4]
[345981375,1734595839578,-500.0,0.00022065,4]
[345981376,1734595839588,-500.0,0.00022065,4]
[345981377,1734595839598,-500.0,0.00022065,4]
[345981378,1734595839607,-500.0,0.00022065,4]
[345981379,1734595839617,-500.0,0.00022065,4]
[345981380,1734595839626,-500.0,0.00022065,4]
[345981381,1734595839637,-500.0,0.00022065,4]
[345981382,1734595839646,-500.0,0.00022065,4]
[345981383,1734595839655,-500.0,0.00022065,4]
[345981384,1734595839664,-500.0,0.00022065,4]
[345981385,1734595839673,-647.79,0.00022065,4]
[345981386,1734595839682,-500.0,0.00022065,4]
[345981387,1734595839691,-500.0,0.00022065,4]
[345981388,1734595839700,-500.0,0.00022065,4]
[345981389,1734595839709,-500.0,0.00022065,4]
[345981390,1734595839718,-275.72119246,0.00022065,4]
[345981391,1734595839728,-8746.8691,0.00022091,2]
[345981392,1734595839737,-889.64,0.00022137,2]
[345981393,1734595839747,-1604.42642008,0.00022163,2]
[345981394,1734595839756,-538.85737547,0.00022191,4]
[345981395,1734595839766,-500.0,0.00022191,4]
[345981396,1734595839775,-556.69297067,0.00022191,4]
[345981397,1734595839784,-500.0,0.00022191,4]
[345981398,1734595839793,-647.32736467,0.00022191,4]
[345981399,1734595839802,-500.0,0.00022191,4]
[345981400,1734595839811,-500.0,0.00022191,4]
[345981401,1734595839820,-500.0,0.00022191,4]
[345981402,1734595839829,-500.0,0.00022191,4]
[345981403,1734595839838,-500.0,0.00022191,4]
[345981404,1734595839848,-500.0,0.00022191,4]
[345981405,1734595839857,-500.0,0.00022191,4]
[345981406,1734595839868,-500.0,0.00022191,4]
[345981407,1734595839877,-500.0,0.00022191,4]
[345981408,1734595839887,-500.0,0.00022191,4]
[345981409,1734595839897,-500.0,0.00022191,4]
[345981410,1734595839906,-500.0,0.00022191,4]
[345981411,1734595839915,-500.0,0.00022191,2]
[345981412,1734595839925,-296.03,0.00022191,4]
[345981413,1734595839934,-500.0,0.00022191,4]
[345981414,1734595839943,-500.0,0.00022191,4]
[345981415,1734595839953,-500.0,0.00022191,4]
[345981416,1734595839962,-500.0,0.00022191,4]
[345981417,1734595839972,-619.19,0.00022191,4]
[345981418,1734595839981,-500.0,0.00022191,4]
[345981419,1734595839991,-500.0,0.00022191,4]
[345981420,1734595840000,-500.0,0.00022191,4]
[345981422,1734595840010,-500.0,0.00022191,4]
[345981423,1734595840019,-797.22,0.00022191,2]
[345981424,1734595840028,-500.0,0.00022191,4]
[345981425,1734595840038,-602.39,0.00022191,4]
[345981426,1734595840048,-500.0,0.00022191,4]
[345981427,1734595840057,-500.0,0.00022191,4]
[345981428,1734595840066,-294.82099603,0.00022191,4]
[345981429,1734595840075,-211.68,0.00022191,4]
[345981430,1734595840084,-500.0,0.00022191,4]
[345981431,1734595840092,-500.0,0.00022191,4]
[345981432,1734595840101,-500.0,0.00022191,4]
[345981433,1734595840111,-230.97,0.00022191,4]
[345981434,1734595840120,-500.0,0.00022191,4]
[345981435,1734595840130,-500.0,0.00022191,4]
[345981436,1734595840141,-500.0,0.00022191,4]
[345981437,1734595840150,-152.68,0.00022191,4]
[345981438,1734595840160,-150.0,0.00022191,2]
[345981439,1734595840169,-1000.0,0.000222,2]
[345981440,1734595840178,-150.0,0.00022225,2]
[345981441,1734595840187,-490.55,0.00022229,2]
[345981442,1734595840196,-500.97,0.00022229,2]
[345981443,1734595840206,-500.71,0.00022229,2]
[345981444,1734595840215,-150.0,0.00022275,2]
[345981445,1734595840224,-151.18940167,0.00022302,2]
[345981446,1734595840233,-483.89322755,0.00022339,4]
[345981447,1734595840243,-500.0,0.00022339,4]
[345981448,1734595840252,-500.0,0.00022339,4]
[345981449,1734595840261,-500.0,0.00022339,4]
[345981450,1734595840271,-500.0,0.00022339,4]
[345981451,1734595840280,-500.0,0.00022339,4]
[345981452,1734595840290,-269.50914165,0.00022339,4]
[345981453,1734595840300,-500.0,0.00022339,4]
[345981454,1734595840310,-500.0,0.00022339,7]
[345981455,1734595840320,-500.0,0.00022339,4]
[345981456,1734595840330,-500.0,0.00022339,4]
[345981457,1734595840340,-500.0,0.00022339,2]
[345981458,1734595840350,-500.0,0.00022339,4]
[345981459,1734595840359,-500.0,0.00022339,4]
[345981460,1734595840369,-500.0,0.00022339,4]
[345981461,1734595840378,-516.99784013,0.00022339,4]
[345981462,1734595840391,-500.0,0.00022339,4]
[345981463,1734595840401,-500.0,0.00022339,4]
[345981464,1734595840410,-500.0,0.00022339,4]
[345981465,1734595840419,-500.0,0.00022339,4]
[345981466,1734595840428,-500.0,0.00022339,4]
[345981467,1734595840437,-500.0,0.00022339,4]
[345981468,1734595840446,-500.0,0.00022339,4]
[345981469,1734595840456,-516.53,0.00022339,4]
[345981470,1734595840465,-500.0,0.00022339,4]
[345981471,1734595840474,-500.0,0.00022339,4]
[345981472,1734595840484,-500.0,0.00022339,4]
[345981473,1734595840493,-500.0,0.00022339,4]
[345981474,1734595840503,-230.47343368,0.00022365,2]
[345981475,1734595840515,-150.0,0.00022381,2]
[345981476,1734595840524,-150.0,0.00022384,2]
[345981477,1734595840533,-150.0,0.00022389,4]
[345981478,1734595840542,-150.0,0.00022436,2]
[345981479,1734595840552,-150.0,0.00022441,2]
[345981480,1734595840561,-569.99713343,0.00022447,2]
[345981481,1734595840570,-1765.1,0.00022453,2]
[345981482,1734595840579,-1765.1,0.00022454,2]
[345981483,1734595840589,-1765.1,0.00022454,2]
[345981484,1734595840598,-1765.1,0.00022454,2]
[345981485,1734595840607,-1765.1,0.00022455,2]
[345981486,1734595840617,-1765.1,0.00022455,2]
[345981487,1734595840627,-1765.1,0.00022455,2]
[345981488,1734595840639,-500.0,0.00022463,4]
[345981489,1734595840648,-500.0,0.00022463,4]
[345981490,1734595840657,-500.0,0.00022463,4]
[345981491,1734595840666,-500.0,0.00022463,4]
[345981492,1734595840676,-783.93,0.00022463,4]
[345981493,1734595840685,-658.25,0.00022463,4]
[345981494,1734595840694,-500.0,0.00022463,4]
[345981495,1734595840704,-500.0,0.00022463,4]
[345981496,1734595840712,-235.17076996,0.00022463,4]
[345981497,1734595840722,-500.0,0.00022463,4]
[345981498,1734595840731,-500.0,0.00022463,4]
[345981499,1734595840740,-500.0,0.00022463,4]
[345981500,1734595840749,-542.9,0.00022463,4]
[345981501,1734595840758,-500.0,0.00022463,4]
[345981502,1734595840768,-500.0,0.00022463,4]
[345981503,1734595840776,-500.0,0.00022463,4]
[345981504,1734595840785,-513.88,0.00022463,4]
[345981505,1734595840794,-756.51,0.00022463,4]
[345981506,1734595840804,-559.18,0.00022463,4]
[345981507,1734595840813,-1943.35,0.00022463,4]
[345981508,1734595840822,-1371.76,0.00022463,4]
[345981509,1734595840831,-1115.28,0.00022463,4]
[345981510,1734595840840,-564.45,0.00022463,4]
[345981511,1734595840849,-659.01,0.00022463,4]
[345981512,1734595840858,-874.12,0.00022463,4]
[345981513,1734595840867,-266.05154131,0.00022463,4]
[345981514,1734595840876,-500.0,0.00022463,4]
[345981515,1734595840887,-500.0,0.00022463,4]
[345981516,1734595840896,-500.0,0.00022463,4]
[345981517,1734595840905,-667.86,0.00022463,4]
[345981518,1734595840914,-1787.37,0.00022463,4]
[345981519,1734595840923,-500.0,0.00022463,4]
[345981520,1734595840932,-500.0,0.00022463,4]
[345981521,1734595840941,-500.0,0.00022463,4]
[345981522,1734595840950,-500.0,0.00022463,4]
[345981523,1734595840959,-500.0,0.00022463,4]
[345981524,1734595840968,-598.44783669,0.00022463,4]
[345981525,1734595840978,-500.0,0.00022463,4]
[345981526,1734595840987,-500.0,0.00022463,4]
[345981527,1734595840996,-500.0,0.00022463,4]
[345981528,1734595841005,-500.0,0.00022463,4]
[345981529,1734595841014,-500.0,0.00022463,4]
[345981530,1734595841023,-500.0,0.00022463,4]
[345981531,1734595841032,-500.0,0.00022463,4]
[345981532,1734595841042,-500.0,0.00022463,4]
[345981533,1734595841052,-620.42,0.00022463,4]
[345981534,1734595841061,-186.38008742,0.00022463,2]
[345981535,1734595841071,-500.0,0.00022464,4]
[345981536,1734595841080,-500.0,0.00022464,4]
[345981537,1734595841089,-500.0,0.00022464,4]
[345981538,1734595841099,-502.69603333,0.00022464,4]
[345981539,1734595841108,-500.0,0.00022464,4]
[345981540,1734595841116,-500.0,0.00022464,4]
[345981541,1734595841126,-612.60242572,0.00022464,4]
[345981542,1734595841135,-500.0,0.00022464,4]
[345981543,1734595841145,-500.0,0.00022464,4]
[345981544,1734595841154,-500.0,0.00022464,4]
[345981545,1734595841163,-513.87669915,0.00022464,4]
[345981546,1734595841172,-500.0,0.00022464,4]
[345981547,1734595841182,-503.04282381,0.00022464,4]
[345981548,1734595841191,-573.54806884,0.00022464,4]
[345981549,1734595841201,-500.0,0.00022464,4]
[345981550,1734595841210,-500.0,0.00022464,4]
[345981551,1734595841219,-500.0,0.00022464,4]
[345981552,1734595841228,-504.96224887,0.00022464,4]
[345981553,1734595841237,-500.0,0.00022464,4]
[345981554,1734595841247,-500.0,0.00022464,4]
[345981555,1734595841256,-500.0,0.00022464,4]
[345981556,1734595841265,-500.0,0.00022464,4]
[345981557,1734595841275,-500.0,0.00022464,4]
[345981558,1734595841284,-500.0,0.00022464,4]
[345981559,1734595841293,-500.0,0.00022464,4]
[345981560,1734595841302,-500.0,0.00022464,4]
[345981561,1734595841312,-502.6131269,0.00022464,4]
[345981562,1734595841321,-500.0,0.00022464,4]
[345981563,1734595841331,-500.0,0.00022464,4]
[345981564,1734595841342,-500.0,0.00022464,4]
[345981565,1734595841351,-500.0,0.00022464,4]
[345981566,1734595841361,-500.0,0.00022464,4]
[345981567,1734595841371,-500.0,0.00022464,4]
[345981568,1734595841380,-500.0,0.00022464,4]
[345981569,1734595841391,-500.0,0.00022464,4]
[345981570,1734595841400,-500.0,0.00022464,4]
[345981571,1734595841410,-502.99634399,0.00022464,4]
[345981572,1734595841420,-500.0,0.00022464,4]
[345981573,1734595841429,-500.0,0.00022464,4]
[345981574,1734595841438,-500.0,0.00022464,4]
[345981575,1734595841448,-500.0,0.00022464,4]
[345981576,1734595841457,-500.0,0.00022464,4]
[345981577,1734595841466,-500.0,0.00022464,4]
[345981578,1734595841475,-500.0,0.00022464,4]
[345981579,1734595841521,-500.0,0.00022464,4]
[345981580,1734595841531,-500.0,0.00022464,4]
[345981581,1734595841541,-500.0,0.00022464,4]
[345981582,1734595841551,-500.0,0.00022464,4]
[345981583,1734595841560,-638.08963754,0.00022464,4]
[345981584,1734595841569,-500.0,0.00022464,4]
[345981585,1734595841579,-500.0,0.00022464,4]
[345981586,1734595841588,-500.0,0.00022464,4]
[345981587,1734595841597,-500.0,0.00022464,4]
[345981588,1734595841606,-500.0,0.00022464,4]
[345981589,1734595841615,-517.28,0.00022464,4]
[345981590,1734595841624,-500.0,0.00022464,4]
[345981591,1734595841635,-1364.66,0.00022464,4]
[345981592,1734595841644,-500.0,0.00022464,4]
[345981593,1734595841654,-500.0,0.00022464,4]
[345981594,1734595841663,-290.09575718,0.00022464,4]
[345981595,1734595841768,-209.90424282,0.00022464,4]
[345981596,1734595841777,-500.0,0.00022464,4]
[345981597,1734595841786,-500.0,0.00022464,4]
[345981598,1734595841795,-500.0,0.00022464,4]
[345981599,1734595841804,-500.0,0.00022464,4]
[345981600,1734595841813,-500.0,0.00022464,4]
[345981601,1734595841823,-500.0,0.00022464,4]
[345981602,1734595841832,-500.0,0.00022464,4]
[345981603,1734595841843,-500.0,0.00022464,4]
[345981604,1734595841853,-936.22,0.00022464,4]
[345981605,1734595841862,-1042.92,0.00022464,4]
[345981606,1734595841871,-756.63,0.00022464,4]
[345981607,1734595841880,-500.0,0.00022464,4]
[345981608,1734595841890,-500.0,0.00022464,4]
[345981609,1734595841900,-500.0,0.00022464,4]
[345981610,1734595841909,-746.8,0.00022464,4]
[345981611,1734595841919,-671.48,0.00022464,4]
[345981612,1734595841928,-645.56,0.00022464,4]
[345981613,1734595841938,-500.0,0.00022464,4]
[345981614,1734595841947,-500.0,0.00022464,4]
[345981615,1734595841956,-870.67,0.00022464,4]
[345981616,1734595841965,-701.45,0.00022464,4]
[345981617,1734595841974,-614.19,0.00022464,4]
[345981618,1734595841983,-960.51,0.00022464,4]
[345981619,1734595841992,-500.0,0.00022464,4]
[345981620,1734595842001,-835.11,0.00022464,4]
[345981621,1734595842011,-1479.84,0.00022464,4]
[345981622,1734595842020,-47336.77793349,0.00022465,2]
[345981623,1734595842029,-154.088307,0.00022465,4]
[345981624,1734595842038,-2000.0,0.00022465,2]
[345981625,1734595842047,-200.0,0.00022465,2]
[345981626,1734595842056,-500.0,0.00022465,4]
[345981627,1734595842065,-200.0,0.00022465,2]
[345981628,1734595842074,-500.0,0.00022465,4]
[345981629,1734595842083,-500.0,0.00022465,4]
[345981630,1734595842091,-500.0,0.00022465,4]
[345981631,1734595842100,-500.0,0.00022465,4]
[345981632,1734595842109,-500.0,0.00022465,4]
[345981633,1734595842118,-500.0,0.00022465,2]
[345981634,1734595842127,-159.53576242,0.00022465,4]
[345981635,1734595842137,-580.65,0.00022465,4]
[345981636,1734595842145,-150.0,0.00022465,4]
[345981637,1734595842154,-500.0,0.00022465,4]
[345981638,1734595842163,-500.0,0.00022465,4]
[345981639,1734595842171,-500.0,0.00022465,4]
[345981640,1734595842180,-242.99,0.00022465,4]
[345981641,1734595842189,-500.0,0.00022465,4]
[345981642,1734595842198,-500.0,0.00022465,4]
[345981643,1734595842207,-797.22,0.00022465,2]
[345981644,1734595842215,-500.0,0.00022465,4]
[345981645,1734595842225,-500.0,0.00022465,4]
[345981646,1734595842233,-500.0,0.00022465,4]
[345981647,1734595842242,-500.0,0.00022465,4]
[345981648,1734595842252,-500.0,0.00022465,4]
[345981649,1734595842262,-500.0,0.00022465,4]
[345981650,1734595842271,-500.0,0.00022465,4]
[345981651,1734595842280,-500.0,0.00022465,4]
[345981652,1734595842289,-150.0,0.00022465,4]
[345981653,1734595842298,-150.0,0.00022465,2]
[345981654,1734595842307,-2608.0,0.00022465,4]
[345981655,1734595842316,-500.0,0.00022465,4]
[345981656,1734595842325,-1400.0,0.00022465,4]
[345981657,1734595842334,-500.0,0.00022465,4]
[345981658,1734595842343,-831.8425131,0.00022465,2]
[345981659,1734595842352,-150.0,0.00022465,4]
[345981660,1734595842362,-2710.5888164,0.00022465,2]
[345981661,1734595842370,-518.10632,0.00022465,2]
[345981662,1734595842380,-448.3048437,0.00022499,2]
[345981663,1734595842392,-153.0,0.0002252,2]
[345981664,1734595842401,-153.0,0.0002252,2]
[345981665,1734595842411,-153.0,0.0002252,2]
[345981666,1734595842420,-153.0,0.0002252,2]
[345981667,1734595842429,-153.0,0.0002252,2]
[345981668,1734595842438,-3888.62836885,0.00022525,2]
[345981669,1734595842447,-1765.1,0.00022538,2]
[345981670,1734595842456,-800.0,0.00022547,8]
[345981671,1734595842465,-800.0,0.00022547,8]
[345981672,1734595842474,-800.0,0.00022547,8]
[345981673,1734595842484,-800.0,0.00022547,8]
[345981674,1734595842492,-800.0,0.00022547,8]
[345981675,1734595842502,-800.0,0.00022547,8]
[345981676,1734595842513,-500.0,0.00022547,2]
[345981677,1734595842521,-500.0,0.00022547,2]
[345981678,1734595842530,-500.0,0.00022547,2]
[345981679,1734595842540,-945.63,0.00022548,2]
[345981680,1734595842551,-150.0,0.00022548,2]
[345981681,1734595842560,-364.93,0.00022548,2]
[345981682,1734595842569,-976.31,0.00022548,2]
[345981683,1734595842578,-444.11,0.00022548,2]
[345981684,1734595842587,-150.0,0.00022548,2]
[345981685,1734595842596,-364.93,0.00022548,2]
[345981686,1734595842606,-150.0,0.00022548,2]
[345981687,1734595842615,-364.93,0.00022548,2]
[345981688,1734595842624,-150.0,0.00022548,2]
[345981689,1734595842633,-371.82,0.00022548,2]
[345981690,1734595842642,-435.94,0.00022548,2]
[345981691,1734595842651,-996.65,0.00022548,2]
[345981692,1734595842660,-490.35,0.00022563,2]
[345981693,1734595842669,-500.0,0.00022613,4]
[345981694,1734595842678,-500.0,0.00022613,4]
[345981695,1734595842686,-322.64905859,0.00022613,4]
[345981696,1734595842695,-505.48936024,0.00022613,4]
[345981697,1734595842703,-500.0,0.00022613,4]
[345981698,1734595842713,-247.50656976,0.00022613,4]
[345981699,1734595842721,-500.0,0.00022613,7]
[345981700,1734595842730,-500.0,0.00022613,4]
[345981701,1734595842739,-501.35596014,0.00022613,2]
[345981702,1734595842748,-500.0,0.00022613,4]
[345981703,1734595842757,-500.0,0.00022613,4]
[345981704,1734595842766,-254.79689258,0.00022613,4]
[345981705,1734595842775,-800.0,0.00022637,8]
[345981706,1734595842783,-800.0,0.00022637,8]
[345981707,1734595842792,-800.0,0.00022637,8]
[345981708,1734595842801,-800.0,0.00022637,8]
[345981709,1734595842810,-800.0,0.00022637,8]
[345981710,1734595842819,-800.0,0.00022637,8]
[345981711,1734595842828,-2559.3457,0.00022639,2]
[345981712,1734595842837,-1765.1,0.00022661,2]
[345981713,1734595842846,-500.0,0.00022673,2]
[345981714,1734595842854,-500.0,0.00022673,2]
[345981715,1734595842863,-150.01,0.00022686,2]
[345981716,1734595842872,-150.01,0.00022686,2]
[345981717,1734595842880,-150.0,0.00022686,2]
[345981718,1734595842890,-500.0,0.00022687,2]
[345981719,1734595842898,-503.85053503,0.00022687,4]
[345981720,1734595842907,-545.04,0.00022687,4]
[345981721,1734595842916,-500.0,0.00022687,4]
[345981722,1734595842925,-500.0,0.00022687,4]
[345981723,1734595842934,-500.0,0.00022687,4]
[345981724,1734595842944,-518.16043498,0.00022687,3]
[345981725,1734595842953,-500.0,0.00022687,4]
[345981726,1734595842962,-504.16520995,0.00022687,4]
[345981727,1734595842971,-500.0,0.00022687,4]
[345981728,1734595842980,-155.89378686,0.00022687,4]
[345981731,1734595842989,-500.0,0.00022687,4]
[345981734,1734595842998,-507.42266307,0.00022687,4]
[345981738,1734595843007,-500.0,0.00022687,4]
[345981742,1734595843016,-500.0,0.00022687,4]
[345981745,1734595843025,-445.43025624,0.00022687,4]
[345981749,1734595843034,-500.0,0.00022687,4]
[345981751,1734595843043,-500.0,0.00022687,4]
[345981754,1734595843052,-500.0,0.00022687,4]
[345981757,1734595843063,-500.0,0.00022687,4]
[345981759,1734595843072,-500.0,0.00022687,4]
[345981761,1734595843081,-500.0,0.00022687,4]
[345981763,1734595843090,-500.0,0.00022687,4]
[345981765,1734595843098,-500.0,0.00022687,4]
[345981767,1734595843108,-500.0,0.00022687,4]
[345981769,1734595843117,-500.0,0.00022687,4]
[345981771,1734595843126,-501.88246471,0.00022687,4]
[345981772,1734595843136,-503.88902745,0.00022687,4]
[345981773,1734595843145,-500.0,0.00022687,4]
[345981774,1734595843154,-500.0,0.00022687,4]
[345981775,1734595843162,-500.0,0.00022687,4]
[345981776,1734595843172,-500.0,0.00022687,4]
[345981777,1734595843181,-500.0,0.00022687,4]
[345981778,1734595843190,-500.0,0.00022687,4]
[345981779,1734595843199,-500.0,0.00022687,4]
[345981780,1734595843208,-500.0,0.00022687,4]
[345981781,1734595843217,-500.0,0.00022687,4]
[345981782,1734595843226,-501.83741349,0.00022687,4]
[345981783,1734595843236,-500.0,0.00022687,4]
[345981784,1734595843245,-504.70946471,0.00022687,4]
[345981785,1734595843254,-500.0,0.00022687,4]
[345981786,1734595843263,-502.72846216,0.00022687,4]
[345981787,1734595843272,-500.0,0.00022687,4]
[345981788,1734595843282,-500.0,0.00022687,4]
[345981789,1734595843294,-500.0,0.00022687,4]
[345981790,1734595843302,-500.0,0.00022687,4]
[345981791,1734595843312,-500.0,0.00022687,4]
[345981792,1734595843320,-500.0,0.00022687,4]
[345981793,1734595843329,-500.0,0.00022687,4]
[345981794,1734595843338,-500.0,0.00022687,4]
[345981795,1734595843347,-500.0,0.00022687,4]
[345981796,1734595843356,-649.9315286,0.00022687,4]
[345981797,1734595843365,-500.0,0.00022687,4]
[345981798,1734595843374,-500.0,0.00022687,4]
[345981799,1734595843384,-500.0,0.00022687,4]
[345981800,1734595843393,-500.0,0.00022687,4]
[345981801,1734595843403,-501.4695044,0.00022687,4]
[345981802,1734595843412,-562.37989123,0.00022687,4]
[345981803,1734595843421,-500.0,0.00022687,4]
[345981804,1734595843430,-501.70749478,0.00022687,4]
[345981805,1734595843439,-500.0,0.00022687,4]
[345981806,1734595843448,-500.0,0.00022687,4]
[345981807,1734595843457,-500.0,0.00022687,4]
[345981808,1734595843467,-500.66113401,0.00022687,4]
[345981809,1734595843475,-501.37331592,0.00022687,4]
[345981810,1734595843486,-237.6577578,0.00022687,4]
[345981811,1734595843495,-501.83446295,0.00022687,4]
[345981812,1734595843506,-502.569233,0.00022687,4]
[345981814,1734595843516,-500.0,0.00022687,4]
[345981815,1734595843525,-500.0,0.00022687,4]
[345981816,1734595843535,-503.61938956,0.00022687,4]
[345981817,1734595843544,-500.0,0.00022687,4]
[345981818,1734595843554,-500.0,0.00022687,4]
[345981819,1734595843563,-500.0,0.00022687,4]
[345981820,1734595843572,-500.0,0.00022687,4]
[345981821,1734595843583,-500.0,0.00022687,4]
[345981822,1734595843592,-500.0,0.00022687,4]
[345981823,1734595843601,-500.0,0.00022687,4]
[345981824,1734595843610,-473.50488343,0.00022687,4]
[345981825,1734595843619,-500.0,0.00022687,2]
[345981826,1734595843628,-505.0684839,0.00022687,4]
[345981827,1734595843639,-500.0,0.00022687,4]
[345981828,1734595843647,-500.0,0.00022687,4]
[345981829,1734595843657,-500.0,0.00022687,4]
[345981830,1734595843667,-500.0,0.00022687,4]
[345981831,1734595843676,-502.34438437,0.00022687,4]
[345981832,1734595843686,-500.0,0.00022687,4]
[345981833,1734595843695,-500.0,0.00022687,4]
[345981834,1734595843705,-500.0,0.00022687,4]
[345981835,1734595843714,-500.0,0.00022687,4]
[345981836,1734595843723,-500.0,0.00022687,4]
[345981837,1734595843732,-500.0,0.00022687,4]
[345981838,1734595843741,-500.9608902,0.00022687,4]
[345981839,1734595843750,-500.0,0.00022687,4]
[345981840,1734595843759,-500.0,0.00022687,4]
[345981841,1734595843768,-500.0,0.00022687,4]
[345981842,1734595843777,-500.0,0.00022687,4]
[345981843,1734595843787,-500.0,0.00022687,4]
[345981844,1734595843795,-500.0,0.00022687,4]
[345981845,1734595843804,-500.0,0.00022687,4]
[345981846,1734595843813,-500.0,0.00022687,4]
[345981847,1734595843822,-500.0,0.00022687,4]
[345981848,1734595843831,-500.0,0.00022687,4]
[345981849,1734595843840,-500.0,0.00022687,4]
[345981850,1734595843850,-500.0,0.00022687,4]
[345981851,1734595843859,-500.0,0.00022687,4]
[345981852,1734595843869,-285.3969668,0.00022687,4]
[345981853,1734595843878,-500.0,0.00022687,4]
[345981854,1734595843888,-506.74680566,0.00022687,4]
[345981855,1734595843897,-500.0,0.00022687,4]
[345981856,1734595843907,-500.0,0.00022687,4]
[345981857,1734595843916,-500.0,0.00022687,4]
[345981858,1734595843925,-500.0,0.00022687,4]
[345981859,1734595843935,-508.45392594,0.00022687,4]
[345981860,1734595843944,-500.0,0.00022687,4]
[345981861,1734595843953,-500.0,0.00022687,4]
[345981862,1734595843963,-500.0,0.00022687,4]
[345981863,1734595843972,-500.0,0.00022687,4]
[345981864,1734595843981,-500.0,0.00022687,4]
[345981865,1734595843991,-500.0,0.00022687,4]
[345981866,1734595844000,-500.0,0.00022687,4]
[345981867,1734595844010,-500.0,0.00022687,4]
[345981868,1734595844019,-500.0,0.00022687,4]
[345981869,1734595844029,-501.89978001,0.00022687,4]
[345981870,1734595844038,-500.0,0.00022687,4]
[345981871,1734595844047,-500.0,0.00022687,4]
[345981872,1734595844056,-500.0,0.00022687,4]
[345981873,1734595844066,-503.96358983,0.00022687,4]
[345981874,1734595844075,-500.0,0.00022687,4]
[345981875,1734595844084,-500.0,0.00022687,4]
[345981876,1734595844093,-500.0,0.00022687,4]
[345981877,1734595844102,-500.0,0.00022687,4]
[345981878,1734595844111,-507.31363477,0.00022687,4]
[345981879,1734595844122,-627.814,0.00022687,4]
[345981880,1734595844131,-500.0,0.00022687,4]
[345981881,1734595844141,-277.84,0.00022687,4]
[345981882,1734595844150,-260.0,0.00022687,4]
[345981883,1734595844160,-500.0,0.00022687,4]
[345981884,1734595844171,-500.0,0.00022687,4]